[Event "*** SCC Grand Prix: Titled Tuesday Blitz"]
[Site "Chess.com"]
[Date "2020.10.06"]
[Round "6"]
[White "diablanni"]
[Black "catzapto"]
[Result "0-1"]
[WhiteElo "2376"]
[BlackElo "2168"]
[TimeControl "180+1"]
[EndTime "11:09:03 PDT"]
[Termination "catzapto won on time"]

1. e4 {[%clk 0:02:59.7]} 1... c5 {[%clk 0:02:59.8]} 2. Nf3 {[%clk 0:02:59]} 2...
e6 {[%clk 0:02:59.2]} 3. d4 {[%clk 0:02:57.9]} 3... cxd4 {[%clk 0:03:00.1]} 4.
Nxd4 {[%clk 0:02:57.5]} 4... Nf6 {[%clk 0:03:00.6]} 5. Nc3 {[%clk 0:02:56.8]}
5... Bb4 {[%clk 0:03:00.8]} 6. e5 {[%clk 0:02:56.9]} 6... Nd5 {[%clk 0:02:59.8]}
7. Qg4 {[%clk 0:02:18.2]} 7... g6 {[%clk 0:02:59.2]} 8. Bd2 {[%clk 0:02:15.6]}
8... Nxc3 {[%clk 0:02:59.4]} 9. bxc3 {[%clk 0:02:12.2]} 9... Be7 {[%clk
0:02:59.8]} 10. h4 {[%clk 0:02:10.8]} 10... h5 {[%clk 0:02:57.4]} 11. Qg3 {[%clk
0:02:06.8]} 11... Nc6 {[%clk 0:02:57.9]} 12. Nb5 {[%clk 0:01:15.4]} 12... O-O
{[%clk 0:01:50.2]} 13. Bd3 {[%clk 0:01:09.4]} 13... Kg7 {[%clk 0:01:35.8]} 14.
c4 {[%clk 0:00:25.2]} 14... a6 {[%clk 0:01:25.1]} 15. Nd6 {[%clk 0:00:22.1]}
15... Bxd6 {[%clk 0:01:25.4]} 16. exd6 {[%clk 0:00:21.2]} 16... Qf6 {[%clk
0:01:26]} 17. Rb1 {[%clk 0:00:17.6]} 17... Qe5+ {[%clk 0:01:26.3]} 18. Qxe5+
{[%clk 0:00:15.3]} 18... Nxe5 {[%clk 0:01:27.2]} 19. Be2 {[%clk 0:00:14.6]}
19... f6 {[%clk 0:01:25.5]} 20. f4 {[%clk 0:00:13.5]} 20... Nf7 {[%clk
0:01:25.6]} 21. c5 {[%clk 0:00:13.3]} 21... Rb8 {[%clk 0:01:22.6]} 22. Rb6
{[%clk 0:00:13.5]} 22... e5 {[%clk 0:01:20.1]} 23. g3 {[%clk 0:00:08.1]} 23...
Nd8 {[%clk 0:01:11.9]} 24. Be3 {[%clk 0:00:06.5]} 24... Ne6 {[%clk 0:00:58.6]}
25. c3 {[%clk 0:00:04.8]} 25... exf4 {[%clk 0:00:47.4]} 26. gxf4 {[%clk
0:00:04.8]} 26... f5 {[%clk 0:00:46.3]} 27. Kd2 {[%clk 0:00:05]} 27... Ra8
{[%clk 0:00:40.6]} 28. a4 {[%clk 0:00:05.1]} 28... a5 {[%clk 0:00:39.7]} 29. Rg1
{[%clk 0:00:05.1]} 29... Kf7 {[%clk 0:00:34.4]} 30. Bc4 {[%clk 0:00:04.3]} 30...
Re8 {[%clk 0:00:32.9]} 31. Bd5 {[%clk 0:00:04.2]} 31... Ra7 {[%clk 0:00:29.6]}
32. Rg2 {[%clk 0:00:03]} 32... Kf6 {[%clk 0:00:29.9]} 33. Rb1 {[%clk 0:00:01.2]}
33... Kf7 {[%clk 0:00:29]} 34. Rbg1 {[%clk 0:00:01.5]} 34... Rg8 {[%clk
0:00:27.9]} 35. Rb1 {[%clk 0:00:01.6]} 35... Re8 {[%clk 0:00:27.1]} 36. Rb6
{[%clk 0:00:01.8]} 36... Rg8 {[%clk 0:00:26.1]} 37. Rg1 {[%clk 0:00:02.4]} 37...
Re8 {[%clk 0:00:26.3]} 38. Rg5 {[%clk 0:00:02.6]} 38... Rg8 {[%clk 0:00:26.3]}
39. Rg2 {[%clk 0:00:03.2]} 39... Re8 {[%clk 0:00:26.6]} 40. Rg1 {[%clk
0:00:03.6]} 40... Rg8 {[%clk 0:00:26.9]} 41. Rgb1 {[%clk 0:00:04.2]} 41... g5
{[%clk 0:00:19.2]} 42. fxg5 {[%clk 0:00:04.2]} 42... f4 {[%clk 0:00:19.6]} 43.
Rf1 {[%clk 0:00:04.5]} 43... Kg6 {[%clk 0:00:19.1]} 44. Bf2 {[%clk 0:00:05]}
44... Rf8 {[%clk 0:00:16.6]} 45. Be4+ {[%clk 0:00:05.1]} 45... Kg7 {[%clk
0:00:16.2]} 46. Rfb1 {[%clk 0:00:05.2]} 46... f3 {[%clk 0:00:14.1]} 47. Ke3
{[%clk 0:00:05.5]} 47... Ra6 {[%clk 0:00:12.4]} 48. Bg3 {[%clk 0:00:05.2]} 48...
Rxb6 {[%clk 0:00:12.4]} 49. Be5+ {[%clk 0:00:05.2]} 49... Kg8 {[%clk 0:00:12.1]}
50. Rxb6 {[%clk 0:00:05.1]} 50... Nxc5 {[%clk 0:00:11.7]} 51. Rb1 {[%clk
0:00:03.2]} 51... Nxe4 {[%clk 0:00:11.7]} 52. Kxe4 {[%clk 0:00:03.4]} 52... b6
{[%clk 0:00:11.4]} 53. Ke3 {[%clk 0:00:02.8]} 53... Bb7 {[%clk 0:00:11.4]} 54.
Kf2 {[%clk 0:00:03.3]} 54... Re8 {[%clk 0:00:11.7]} 55. Re1 {[%clk 0:00:01.1]}
55... Kf7 {[%clk 0:00:11.7]} 0-1

[Event "*** SCC Grand Prix: Titled Tuesday Blitz"]
[Site "Chess.com"]
[Date "2020.10.06"]
[Round "6"]
[White "Harry_Rakkel"]
[Black "annazero"]
[Result "1/2-1/2"]
[WhiteElo "2576"]
[BlackElo "2407"]
[TimeControl "180+1"]
[EndTime "11:09:04 PDT"]
[Termination "Game drawn by repetition"]

1. d4 {[%clk 0:03:00.9]} 1... d5 {[%clk 0:02:58.2]} 2. c4 {[%clk 0:02:59.9]}
2... c6 {[%clk 0:02:58.6]} 3. Nc3 {[%clk 0:02:58.9]} 3... Nf6 {[%clk 0:02:58.1]}
4. cxd5 {[%clk 0:02:55.8]} 4... cxd5 {[%clk 0:02:57.9]} 5. Nf3 {[%clk
0:02:56.3]} 5... Nc6 {[%clk 0:02:58.4]} 6. Bf4 {[%clk 0:02:56.2]} 6... Bf5
{[%clk 0:02:59]} 7. e3 {[%clk 0:02:55.6]} 7... e6 {[%clk 0:02:59.4]} 8. Bb5
{[%clk 0:02:55.1]} 8... Nd7 {[%clk 0:02:57.6]} 9. O-O {[%clk 0:02:50.9]} 9...
Be7 {[%clk 0:02:52.5]} 10. Rc1 {[%clk 0:02:45.8]} 10... O-O {[%clk 0:02:51.9]}
11. h3 {[%clk 0:02:21.1]} 11... Rc8 {[%clk 0:02:46.1]} 12. Na4 {[%clk
0:02:01.4]} 12... a6 {[%clk 0:02:14.5]} 13. Bxc6 {[%clk 0:01:31.6]} 13... bxc6
{[%clk 0:02:12.9]} 14. Qe2 {[%clk 0:01:27.4]} 14... Qa5 {[%clk 0:02:10.7]} 15.
b3 {[%clk 0:01:26.1]} 15... c5 {[%clk 0:02:06.7]} 16. dxc5 {[%clk 0:01:12.9]}
16... Nxc5 {[%clk 0:01:59.5]} 17. Nxc5 {[%clk 0:01:11.7]} 17... Bxc5 {[%clk
0:01:54]} 18. Be5 {[%clk 0:01:04.3]} 18... Ba3 {[%clk 0:01:38.6]} 19. Bb2 {[%clk
0:01:01]} 19... Bd3 {[%clk 0:01:29.5]} 20. Qxd3 {[%clk 0:01:00.1]} 20... Bxb2
{[%clk 0:01:29]} 21. Rxc8 {[%clk 0:00:54.3]} 21... Rxc8 {[%clk 0:01:29.9]} 22.
Qb1 {[%clk 0:00:52.1]} 22... Ba3 {[%clk 0:01:27.3]} 23. Ng5 {[%clk 0:00:42.1]}
23... g6 {[%clk 0:01:21]} 24. e4 {[%clk 0:00:42.4]} 24... d4 {[%clk 0:01:18.9]}
25. Nf3 {[%clk 0:00:40.5]} 25... e5 {[%clk 0:01:18]} 26. Ne1 {[%clk 0:00:32.2]}
26... Rc1 {[%clk 0:01:14.7]} 27. b4 {[%clk 0:00:19.8]} 27... Qxb4 {[%clk
0:00:57.5]} 28. Qxb4 {[%clk 0:00:19.1]} 28... Bxb4 {[%clk 0:00:58.4]} 29. Nd3
{[%clk 0:00:19.3]} 29... Rxf1+ {[%clk 0:00:57.5]} 30. Kxf1 {[%clk 0:00:20.2]}
30... Bd6 {[%clk 0:00:57.1]} 31. Ke2 {[%clk 0:00:20]} 31... f5 {[%clk
0:00:56.9]} 32. f3 {[%clk 0:00:19.7]} 32... Kf7 {[%clk 0:00:56.5]} 33. Kd2
{[%clk 0:00:19.4]} 33... Ke6 {[%clk 0:00:55.7]} 34. Kc2 {[%clk 0:00:19.1]} 34...
Kd7 {[%clk 0:00:55.4]} 35. Kb3 {[%clk 0:00:19]} 35... Kc6 {[%clk 0:00:55.7]} 36.
Kc4 {[%clk 0:00:19.4]} 36... h5 {[%clk 0:00:51.6]} 37. g4 {[%clk 0:00:18.2]}
37... fxe4 {[%clk 0:00:43.9]} 38. fxe4 {[%clk 0:00:17.6]} 38... Bc7 {[%clk
0:00:42.3]} 39. Ne1 {[%clk 0:00:16.4]} 39... Kd6 {[%clk 0:00:41.2]} 40. Nf3
{[%clk 0:00:16]} 40... Ke6 {[%clk 0:00:39.5]} 41. gxh5 {[%clk 0:00:11.6]} 41...
gxh5 {[%clk 0:00:35.6]} 42. Nh4 {[%clk 0:00:07.4]} 42... Ba5 {[%clk 0:00:32.2]}
43. Nf5 {[%clk 0:00:05.8]} 43... Kf6 {[%clk 0:00:28.8]} 44. h4 {[%clk
0:00:05.3]} 44... Be1 {[%clk 0:00:26.6]} 45. Kd3 {[%clk 0:00:05.5]} 45... Bc3
{[%clk 0:00:24.4]} 46. Ke2 {[%clk 0:00:04.7]} 46... Bb4 {[%clk 0:00:19.8]} 47.
Ng3 {[%clk 0:00:04.5]} 47... Kg6 {[%clk 0:00:17.2]} 48. Nf5 {[%clk 0:00:03.8]}
48... Bc5 {[%clk 0:00:16.9]} 49. Kd3 {[%clk 0:00:03.1]} 49... Bb6 {[%clk
0:00:17.6]} 50. Ke2 {[%clk 0:00:03.6]} 50... Bd8 {[%clk 0:00:17.8]} 51. Kf3
{[%clk 0:00:03.8]} 51... Bb6 {[%clk 0:00:17.6]} 52. Ke2 {[%clk 0:00:04.4]} 52...
Ba5 {[%clk 0:00:18]} 53. Kd3 {[%clk 0:00:04.9]} 53... Bb4 {[%clk 0:00:18.6]} 54.
Ke2 {[%clk 0:00:05.2]} 54... Bc3 {[%clk 0:00:19.3]} 55. Kd3 {[%clk 0:00:05.7]}
55... Ba5 {[%clk 0:00:19.9]} 56. Ke2 {[%clk 0:00:06]} 56... Bc3 {[%clk
0:00:20.4]} 57. Ne7+ {[%clk 0:00:05.5]} 57... Kf7 {[%clk 0:00:17.5]} 58. Nf5
{[%clk 0:00:06.4]} 58... Kg6 {[%clk 0:00:17.5]} 1/2-1/2

[Event "*** SCC Grand Prix: Titled Tuesday Blitz"]
[Site "Chess.com"]
[Date "2020.10.06"]
[Round "6"]
[White "ClydeHillKid"]
[Black "besarquis"]
[Result "0-1"]
[WhiteElo "2319"]
[BlackElo "2214"]
[TimeControl "180+1"]
[EndTime "11:09:07 PDT"]
[Termination "besarquis won by checkmate"]

1. e4 {[%clk 0:03:00.9]} 1... e5 {[%clk 0:02:59.7]} 2. Nf3 {[%clk 0:02:58.2]}
2... Nc6 {[%clk 0:02:59.8]} 3. Bc4 {[%clk 0:02:57.6]} 3... Bc5 {[%clk
0:02:59.4]} 4. c3 {[%clk 0:02:57.1]} 4... Nf6 {[%clk 0:02:59.8]} 5. d3 {[%clk
0:02:56.7]} 5... d6 {[%clk 0:02:59.6]} 6. Nbd2 {[%clk 0:02:53.7]} 6... a6 {[%clk
0:02:59.6]} 7. Bb3 {[%clk 0:02:52.9]} 7... Ba7 {[%clk 0:02:59.2]} 8. h3 {[%clk
0:02:52.5]} 8... h6 {[%clk 0:02:59.5]} 9. O-O {[%clk 0:02:42.2]} 9... Ne7 {[%clk
0:02:59.3]} 10. d4 {[%clk 0:02:39.7]} 10... Ng6 {[%clk 0:02:58.5]} 11. Re1
{[%clk 0:02:39.8]} 11... O-O {[%clk 0:02:57.9]} 12. Nf1 {[%clk 0:02:39.4]} 12...
c6 {[%clk 0:02:56.3]} 13. Ng3 {[%clk 0:02:36.6]} 13... Qc7 {[%clk 0:02:55.5]}
14. Be3 {[%clk 0:02:13.3]} 14... c5 {[%clk 0:02:53.7]} 15. dxe5 {[%clk
0:02:09.1]} 15... dxe5 {[%clk 0:02:53.3]} 16. Qe2 {[%clk 0:01:51.8]} 16... b5
{[%clk 0:02:46.9]} 17. c4 {[%clk 0:01:48.5]} 17... Rb8 {[%clk 0:02:41.1]} 18.
Rad1 {[%clk 0:01:42.7]} 18... Be6 {[%clk 0:02:33.4]} 19. Rd2 {[%clk 0:01:25.6]}
19... Qc6 {[%clk 0:02:20.7]} 20. Red1 {[%clk 0:00:47.2]} 20... Nxe4 {[%clk
0:02:11.9]} 21. cxb5 {[%clk 0:00:40.1]} 21... axb5 {[%clk 0:02:01.7]} 22. Nxe4
{[%clk 0:00:38.8]} 22... Qxe4 {[%clk 0:02:01.1]} 23. Bxe6 {[%clk 0:00:38]} 23...
fxe6 {[%clk 0:01:59.9]} 24. Rd7 {[%clk 0:00:34.8]} 24... Rb7 {[%clk 0:01:56.5]}
25. a3 {[%clk 0:00:17]} 25... Nf4 {[%clk 0:01:53.7]} 26. Qe1 {[%clk 0:00:08.6]}
26... Nxg2 {[%clk 0:01:42.5]} 27. Kxg2 {[%clk 0:00:07]} 27... Qxf3+ {[%clk
0:01:38.1]} 28. Kg1 {[%clk 0:00:04.7]} 28... Rf6 {[%clk 0:01:19.5]} 29. Rxb7
{[%clk 0:00:03]} 29... Qxb7 {[%clk 0:01:09.4]} 30. Kf1 {[%clk 0:00:03.1]} 30...
Qf3 {[%clk 0:00:56.3]} 31. Rd8+ {[%clk 0:00:02.9]} 31... Kh7 {[%clk 0:00:55.5]}
32. Qd2 {[%clk 0:00:03.5]} 32... Qxh3+ {[%clk 0:00:51.8]} 33. Ke2 {[%clk
0:00:03.3]} 33... Qg4+ {[%clk 0:00:50.6]} 34. Ke1 {[%clk 0:00:04]} 34... Qf3
{[%clk 0:00:30.7]} 35. Qd3+ {[%clk 0:00:04]} 35... e4 {[%clk 0:00:29.1]} 36. Qd7
{[%clk 0:00:03.9]} 36... Rg6 {[%clk 0:00:25.8]} 37. Qxa7 {[%clk 0:00:03.8]}
37... Rg1+ {[%clk 0:00:25.4]} 38. Kd2 {[%clk 0:00:04.5]} 38... Rd1+ {[%clk
0:00:24.1]} 39. Kc3 {[%clk 0:00:05.2]} 39... Rxd8 {[%clk 0:00:23.2]} 40. Qxc5
{[%clk 0:00:05.6]} 40... Qf6+ {[%clk 0:00:22.1]} 41. Kc2 {[%clk 0:00:05.3]}
41... e5 {[%clk 0:00:18.9]} 42. Qxb5 {[%clk 0:00:05.5]} 42... Qe6 {[%clk
0:00:17.1]} 43. Kb1 {[%clk 0:00:05.5]} 43... Qd6 {[%clk 0:00:15.8]} 44. Qc4
{[%clk 0:00:05.1]} 44... Qd3+ {[%clk 0:00:15.2]} 45. Qxd3 {[%clk 0:00:05.3]}
45... exd3 {[%clk 0:00:15.4]} 46. Kc1 {[%clk 0:00:05.9]} 46... h5 {[%clk
0:00:15]} 47. Kd2 {[%clk 0:00:06]} 47... h4 {[%clk 0:00:15.2]} 48. f3 {[%clk
0:00:06.2]} 48... h3 {[%clk 0:00:13.4]} 49. Bg1 {[%clk 0:00:06.7]} 49... Kg6
{[%clk 0:00:09.3]} 50. a4 {[%clk 0:00:06.3]} 50... Kf5 {[%clk 0:00:09.4]} 51. a5
{[%clk 0:00:06.6]} 51... Kf4 {[%clk 0:00:09.8]} 52. b4 {[%clk 0:00:05.6]} 52...
Kxf3 {[%clk 0:00:09.9]} 53. a6 {[%clk 0:00:06.2]} 53... Kg2 {[%clk 0:00:10]} 54.
b5 {[%clk 0:00:06]} 54... Kxg1 {[%clk 0:00:08.6]} 55. a7 {[%clk 0:00:06.2]}
55... h2 {[%clk 0:00:08.3]} 56. b6 {[%clk 0:00:06.3]} 56... h1=Q {[%clk
0:00:08.5]} 57. b7 {[%clk 0:00:05.7]} 57... Qxb7 {[%clk 0:00:08.2]} 58. a8=Q
{[%clk 0:00:06.1]} 58... Qxa8 {[%clk 0:00:08.1]} 59. Ke3 {[%clk 0:00:06.4]}
59... Qa7+ {[%clk 0:00:08.2]} 60. Kd2 {[%clk 0:00:06.5]} 60... Qa2+ {[%clk
0:00:07.9]} 61. Ke3 {[%clk 0:00:06.8]} 61... Qe2# {[%clk 0:00:08]} 0-1

[Event "*** SCC Grand Prix: Titled Tuesday Blitz"]
[Site "Chess.com"]
[Date "2020.10.06"]
[Round "6"]
[White "olksuna"]
[Black "venus02"]
[Result "0-1"]
[WhiteElo "2613"]
[BlackElo "2498"]
[TimeControl "180+1"]
[EndTime "11:09:13 PDT"]
[Termination "venus02 won on time"]

1. e4 {[%clk 0:03:00.9]} 1... c6 {[%clk 0:02:59.2]} 2. Ne2 {[%clk 0:03:00.2]}
2... d5 {[%clk 0:02:59.1]} 3. e5 {[%clk 0:03:00.8]} 3... Qc7 {[%clk 0:02:49]} 4.
d4 {[%clk 0:02:59.2]} 4... Bf5 {[%clk 0:02:47.6]} 5. Ng3 {[%clk 0:02:53.9]} 5...
Bd7 {[%clk 0:02:45.3]} 6. c4 {[%clk 0:02:47.1]} 6... e6 {[%clk 0:02:43]} 7. Nc3
{[%clk 0:02:45.5]} 7... dxc4 {[%clk 0:02:39.5]} 8. Bxc4 {[%clk 0:02:45.2]} 8...
c5 {[%clk 0:02:40]} 9. O-O {[%clk 0:02:23.9]} 9... cxd4 {[%clk 0:02:36.9]} 10.
Qxd4 {[%clk 0:02:24.8]} 10... Nc6 {[%clk 0:02:30]} 11. Nb5 {[%clk 0:02:24.7]}
11... Qb8 {[%clk 0:02:28]} 12. Qe4 {[%clk 0:01:33.7]} 12... a6 {[%clk 0:02:25]}
13. Nd6+ {[%clk 0:01:32.9]} 13... Bxd6 {[%clk 0:02:24.8]} 14. exd6 {[%clk
0:01:33.8]} 14... Nf6 {[%clk 0:02:20.1]} 15. Qe2 {[%clk 0:01:17.7]} 15... Qxd6
{[%clk 0:02:13.7]} 16. Nf5 {[%clk 0:01:15.4]} 16... Qe5 {[%clk 0:01:52.6]} 17.
Nxg7+ {[%clk 0:01:13.3]} 17... Ke7 {[%clk 0:01:52.3]} 18. Qf3 {[%clk 0:00:52.2]}
18... Nd4 {[%clk 0:01:45.1]} 19. Qa3+ {[%clk 0:00:48.7]} 19... Qd6 {[%clk
0:01:30.5]} 20. Qxd6+ {[%clk 0:00:41]} 20... Kxd6 {[%clk 0:01:30.4]} 21. Rd1
{[%clk 0:00:41.9]} 21... e5 {[%clk 0:01:18.6]} 22. Bf4 {[%clk 0:00:22]} 22...
exf4 {[%clk 0:01:03.2]} 23. Rxd4+ {[%clk 0:00:20.8]} 23... Ke5 {[%clk
0:01:00.5]} 24. Rd3 {[%clk 0:00:15.1]} 24... Bc6 {[%clk 0:00:35.7]} 25. Re1+
{[%clk 0:00:14.8]} 25... Ne4 {[%clk 0:00:35.8]} 26. f3 {[%clk 0:00:14]} 26...
Rhg8 {[%clk 0:00:31.6]} 27. Nh5 {[%clk 0:00:14]} 27... Rg5 {[%clk 0:00:28.5]}
28. g4 {[%clk 0:00:12]} 28... fxg3 {[%clk 0:00:12.4]} 29. Nxg3 {[%clk 0:00:10]}
29... f5 {[%clk 0:00:12.9]} 30. Kf1 {[%clk 0:00:06.1]} 30... Rf8 {[%clk
0:00:06.7]} 31. Rde3 {[%clk 0:00:05.9]} 31... Kd4 {[%clk 0:00:05.7]} 32. fxe4
{[%clk 0:00:05.6]} 32... fxe4+ {[%clk 0:00:04.9]} 33. Ke2 {[%clk 0:00:03.7]}
33... Kxc4 {[%clk 0:00:05.2]} 34. Rc1+ {[%clk 0:00:04]} 34... Kb4 {[%clk
0:00:05.1]} 35. a3+ {[%clk 0:00:03.8]} 35... Ka5 {[%clk 0:00:05.2]} 36. Nxe4
{[%clk 0:00:03.7]} 36... Bxe4 {[%clk 0:00:04.8]} 37. Rxe4 {[%clk 0:00:03.9]}
37... Rg2+ {[%clk 0:00:04.9]} 38. Ke3 {[%clk 0:00:04.3]} 38... Rxb2 {[%clk
0:00:04.7]} 39. Rc5+ {[%clk 0:00:04]} 39... Kb6 {[%clk 0:00:04.9]} 40. Rh5
{[%clk 0:00:04.9]} 40... Ka7 {[%clk 0:00:04.9]} 41. Rxh7 {[%clk 0:00:05]} 41...
Rb3+ {[%clk 0:00:05.2]} 42. Kd2 {[%clk 0:00:04.6]} 42... Rxa3 {[%clk 0:00:05.1]}
43. Ree7 {[%clk 0:00:04.1]} 43... Rb3 {[%clk 0:00:05.2]} 44. Kc2 {[%clk
0:00:04.2]} 44... Rb5 {[%clk 0:00:05.3]} 45. h4 {[%clk 0:00:04.3]} 45... Rf2+
{[%clk 0:00:05.4]} 46. Kc3 {[%clk 0:00:04.2]} 46... Rf3+ {[%clk 0:00:05.8]} 47.
Kc4 {[%clk 0:00:04.2]} 47... Rf4+ {[%clk 0:00:06]} 48. Kc3 {[%clk 0:00:03.7]}
48... a5 {[%clk 0:00:06.5]} 49. h5 {[%clk 0:00:03.8]} 49... a4 {[%clk
0:00:06.8]} 50. h6 {[%clk 0:00:04.4]} 50... a3 {[%clk 0:00:07.2]} 51. Re2 {[%clk
0:00:03.9]} 51... Rf3+ {[%clk 0:00:06.2]} 52. Kc4 {[%clk 0:00:03.9]} 52... Rb2
{[%clk 0:00:05.4]} 53. Ree7 {[%clk 0:00:01.4]} 53... a2 {[%clk 0:00:05]} 54. Re1
{[%clk 0:00:01.5]} 54... Rb1 {[%clk 0:00:04.7]} 0-1

[Event "*** SCC Grand Prix: Titled Tuesday Blitz"]
[Site "Chess.com"]
[Date "2020.10.06"]
[Round "6"]
[White "Tooweak2slow03"]
[Black "hungrycaterpillar4"]
[Result "0-1"]
[WhiteElo "2777"]
[BlackElo "2634"]
[TimeControl "180+1"]
[EndTime "11:09:14 PDT"]
[Termination "hungrycaterpillar4 won by resignation"]

1. e4 {[%clk 0:03:00.9]} 1... c5 {[%clk 0:02:59.6]} 2. Nf3 {[%clk 0:03:01.4]}
2... Nc6 {[%clk 0:02:59.9]} 3. Bb5 {[%clk 0:03:00.9]} 3... g6 {[%clk 0:03:00.4]}
4. Bxc6 {[%clk 0:03:01.1]} 4... dxc6 {[%clk 0:03:01.3]} 5. O-O {[%clk
0:03:01.5]} 5... Bg7 {[%clk 0:03:01.9]} 6. d3 {[%clk 0:03:02.1]} 6... Qc7 {[%clk
0:03:02.4]} 7. Nc3 {[%clk 0:03:02.1]} 7... e5 {[%clk 0:03:02.7]} 8. Be3 {[%clk
0:03:02]} 8... b6 {[%clk 0:03:03.2]} 9. a3 {[%clk 0:03:01.2]} 9... Ne7 {[%clk
0:03:02.9]} 10. b4 {[%clk 0:03:01.2]} 10... cxb4 {[%clk 0:03:03.4]} 11. axb4
{[%clk 0:03:02.1]} 11... Be6 {[%clk 0:03:03.6]} 12. Qd2 {[%clk 0:03:01.9]} 12...
h6 {[%clk 0:03:04]} 13. b5 {[%clk 0:02:56.3]} 13... c5 {[%clk 0:03:03.1]} 14. h3
{[%clk 0:02:50.2]} 14... f5 {[%clk 0:03:03]} 15. exf5 {[%clk 0:02:49.1]} 15...
gxf5 {[%clk 0:03:03.9]} 16. Rfe1 {[%clk 0:02:43.6]} 16... Ng6 {[%clk 0:03:03.9]}
17. Qc1 {[%clk 0:01:31.8]} 17... Kf7 {[%clk 0:03:02]} 18. Ne2 {[%clk 0:01:24.3]}
18... Bd5 {[%clk 0:02:59.5]} 19. Nh2 {[%clk 0:01:21.8]} 19... f4 {[%clk
0:02:57.4]} 20. Nc3 {[%clk 0:01:17.1]} 20... Bb7 {[%clk 0:02:55.4]} 21. Bd2
{[%clk 0:01:15.2]} 21... Rhg8 {[%clk 0:02:53.8]} 22. Ne4 {[%clk 0:01:12.4]}
22... Nh4 {[%clk 0:02:52.8]} 23. Qb1 {[%clk 0:01:03]} 23... Bd5 {[%clk
0:02:48.8]} 24. Qd1 {[%clk 0:00:57.4]} 24... Bxe4 {[%clk 0:01:36.3]} 25. Rxe4
{[%clk 0:00:55.9]} 25... Bf6 {[%clk 0:01:36.8]} 26. Qh5+ {[%clk 0:00:53.2]}
26... Ke6 {[%clk 0:01:29.3]} 27. Bxf4 {[%clk 0:00:23]} 27... Rxg2+ {[%clk
0:01:07.1]} 28. Kh1 {[%clk 0:00:22.4]} 28... Qg7 {[%clk 0:00:44.1]} 29. Ng4
{[%clk 0:00:20.9]} 29... Rxg4 {[%clk 0:00:35.9]} 30. hxg4 {[%clk 0:00:21.8]}
30... Nf3 {[%clk 0:00:36.2]} 31. Qf5+ {[%clk 0:00:19.8]} 31... Ke7 {[%clk
0:00:26.8]} 32. Bg3 {[%clk 0:00:16.7]} 32... Nd4 {[%clk 0:00:25.5]} 33. Rae1
{[%clk 0:00:15.4]} 33... Nxf5 {[%clk 0:00:25.7]} 34. gxf5 {[%clk 0:00:16.3]}
34... Rg8 {[%clk 0:00:18.4]} 35. Rg1 {[%clk 0:00:13.9]} 35... Qf7 {[%clk
0:00:18.2]} 36. Rge1 {[%clk 0:00:12.6]} 36... Qh5+ {[%clk 0:00:18.6]} 37. Kg1
{[%clk 0:00:11.6]} 37... Qxf5 {[%clk 0:00:19.1]} 38. Kf1 {[%clk 0:00:09.3]}
38... Qh3+ {[%clk 0:00:18.5]} 39. Ke2 {[%clk 0:00:08.7]} 39... Rg4 {[%clk
0:00:18.7]} 40. Kd2 {[%clk 0:00:06.7]} 40... Rxe4 {[%clk 0:00:18.6]} 41. Rxe4
{[%clk 0:00:07.6]} 41... Ke6 {[%clk 0:00:16.3]} 42. Re3 {[%clk 0:00:06.4]} 42...
Qg2 {[%clk 0:00:16.1]} 43. Ke2 {[%clk 0:00:05.2]} 43... Kf5 {[%clk 0:00:16.2]}
44. Re4 {[%clk 0:00:04.1]} 44... h5 {[%clk 0:00:14.6]} 45. c4 {[%clk 0:00:03.6]}
45... Qxe4+ {[%clk 0:00:08.6]} 46. dxe4+ {[%clk 0:00:03.7]} 46... Kxe4 {[%clk
0:00:09.5]} 47. f3+ {[%clk 0:00:04.2]} 47... Kd4 {[%clk 0:00:09.5]} 48. f4
{[%clk 0:00:03.7]} 48... exf4 {[%clk 0:00:09.4]} 49. Bxf4 {[%clk 0:00:04.6]}
49... Kxc4 {[%clk 0:00:10]} 50. Bb8 {[%clk 0:00:05.5]} 50... Kxb5 {[%clk
0:00:10.6]} 51. Bxa7 {[%clk 0:00:06.1]} 51... Kc6 {[%clk 0:00:10]} 52. Kd3
{[%clk 0:00:06.4]} 52... b5 {[%clk 0:00:10.5]} 53. Kc2 {[%clk 0:00:05.7]} 53...
c4 {[%clk 0:00:11]} 54. Be3 {[%clk 0:00:04.7]} 54... b4 {[%clk 0:00:10.9]} 55.
Bd2 {[%clk 0:00:04.9]} 55... b3+ {[%clk 0:00:11.8]} 56. Kb1 {[%clk 0:00:05.3]}
56... h4 {[%clk 0:00:11.7]} 57. Bf4 {[%clk 0:00:04.9]} 57... h3 {[%clk
0:00:11.9]} 58. Bh2 {[%clk 0:00:05]} 58... Kd5 {[%clk 0:00:12.2]} 59. Kc1 {[%clk
0:00:05.4]} 59... Be5 {[%clk 0:00:12.7]} 60. Kb1 {[%clk 0:00:06.3]} 60... Bxh2
{[%clk 0:00:12.6]} 0-1